bitfinex/quotes_BTCUSD_20241107
["timestamp","ask_amount","ask_price","bid_price","bid_amount"]
[1731002163356,5.47904173,76319.0,76318.0,1.2598397]
[1731002163576,5.47904173,76319.0,76318.0,1.2588397]
[1731002163774,5.47904173,76319.0,76318.0,1.17680276]
[1731002164018,5.47904173,76319.0,76318.0,0.99254613]
[1731002164246,5.47904173,76319.0,76318.0,0.99154613]
[1731002164247,5.55794173,76319.0,76318.0,0.99154613]
[1731002164494,5.47904173,76319.0,76318.0,0.94018613]
[1731002164934,5.47904173,76319.0,76318.0,0.93918613]
[1731002165362,5.47904173,76319.0,76318.0,1.03918613]
[1731002166034,5.60414173,76319.0,76318.0,0.90561521]
[1731002166257,5.60914173,76319.0,76318.0,0.90561521]
[1731002166472,5.61114173,76319.0,76318.0,0.90661521]
[1731002166702,5.60914173,76319.0,76318.0,0.90561521]
[1731002167177,5.60414173,76319.0,76318.0,0.90661521]
[1731002167405,5.60414173,76319.0,76318.0,0.90561521]
[1731002167613,5.60414173,76319.0,76318.0,1.00661521]
[1731002170616,5.60414173,76319.0,76318.0,1.00561521]
[1731002170818,5.60414173,76319.0,76318.0,1.00661521]
[1731002171019,5.60414173,76319.0,76318.0,1.00561521]
[1731002171456,5.60414173,76319.0,76318.0,1.00661521]
[1731002172306,5.47904173,76319.0,76318.0,1.02961521]
[1731002172525,5.47904173,76319.0,76318.0,1.02861521]
[1731002172929,5.47904173,76319.0,76318.0,1.02961521]
[1731002173210,5.47904173,76319.0,76318.0,1.02861521]
[1731002173732,5.47904173,76319.0,76318.0,1.06569184]
[1731002175484,5.47904173,76319.0,76318.0,1.06469184]
[1731002175695,5.47904173,76319.0,76318.0,1.09960894]
[1731002175893,5.47904173,76319.0,76318.0,1.10060894]
[1731002176513,5.47904173,76319.0,76318.0,1.09060894]
[1731002177416,5.47904173,76319.0,76318.0,1.03153231]
[1731002177623,5.47904173,76319.0,76318.0,0.99661521]
[1731002178687,5.47904173,76319.0,76318.0,0.99561521]
[1731002178889,5.47904173,76319.0,76318.0,1.05469184]
[1731002179102,5.47904173,76319.0,76318.0,1.05569184]
[1731002179305,5.47904173,76319.0,76318.0,1.05469184]
[1731002179507,5.47904173,76319.0,76318.0,1.05569184]
[1731002179956,5.47904173,76319.0,76318.0,1.08084184]
[1731002180161,5.47904173,76319.0,76318.0,1.08184184]
[1731002180366,5.47904173,76319.0,76318.0,1.08084184]
[1731002180771,5.47904173,76319.0,76318.0,1.08184184]
[1731002182481,5.47904173,76319.0,76318.0,1.08084184]
[1731002182926,5.47904173,76319.0,76318.0,1.08184184]
[1731002184870,5.47904173,76319.0,76318.0,1.05569184]
[1731002185106,5.55404173,76319.0,76318.0,0.99661521]
[1731002185978,5.47904173,76319.0,76318.0,0.99661521]
[1731002186235,5.47904173,76319.0,76318.0,0.99561521]
[1731002186450,5.47904173,76319.0,76318.0,1.01961521]
[1731002188840,5.47904173,76319.0,76318.0,1.05961521]
[1731002189704,5.47904173,76319.0,76318.0,1.03661521]
[1731002190397,5.56154173,76319.0,76318.0,1.03661521]
[1731002191704,5.56154173,76319.0,76318.0,1.03561521]
[1731002192135,5.56154173,76319.0,76318.0,1.03661521]
[1731002197305,5.47904173,76319.0,76318.0,1.03661521]
[1731002198326,5.48900173,76319.0,76318.0,1.03661521]
[1731002198989,5.48404173,76319.0,76318.0,1.03661521]
[1731002199362,5.47904173,76319.0,76318.0,1.03661521]
[1731002201595,5.47904173,76319.0,76318.0,1.08593087]
[1731002201847,5.47904173,76319.0,76318.0,1.08576521]
[1731002202280,5.47904173,76319.0,76318.0,1.08476521]
[1731002202503,5.47904173,76319.0,76318.0,1.08576521]
[1731002202958,5.47904173,76319.0,76318.0,1.08476521]
[1731002203165,5.47904173,76319.0,76318.0,1.11851837]
[1731002204468,5.47904173,76319.0,76318.0,1.11951837]
[1731002207433,5.47904173,76319.0,76318.0,1.11851837]
[1731002207661,5.47904173,76319.0,76318.0,1.11951837]
[1731002207876,5.47904173,76319.0,76318.0,1.2493043]
[1731002208315,5.47904173,76319.0,76318.0,1.2503043]
[1731002208538,5.47904173,76319.0,76318.0,1.24871837]
[1731002208791,5.47904173,76319.0,76318.0,1.26411689]
[1731002209016,5.40549761,76319.0,76318.0,1.26411689]
[1731002209907,5.40549761,76319.0,76318.0,1.23796689]
[1731002210945,5.40549761,76319.0,76318.0,1.23696689]
[1731002211402,5.40549761,76319.0,76318.0,1.23796689]
[1731002211584,5.27565617,76319.0,76318.0,1.23696689]
[1731002211788,4.62198946,76319.0,76318.0,1.24763971]
[1731002211972,4.62198946,76319.0,76318.0,1.24863971]
[1731002212175,4.49503947,76319.0,76318.0,1.24763971]
[1731002212394,4.28673947,76319.0,76318.0,1.24763971]
[1731002212615,4.16464447,76319.0,76318.0,1.24863971]
[1731002212836,3.3372786,76319.0,76318.0,1.27378971]
[1731002213055,3.1811786,76319.0,76318.0,1.11083655]
[1731002214327,0.0005,76325.0,76318.0,1.11083655]
[1731002214328,0.0005,76325.0,76320.0,0.02615]
[1731002214529,6.69526431,76328.0,76327.0,0.65733346]
[1731002214736,6.43392931,76328.0,76327.0,1.73043102]
[1731002214942,6.43392931,76328.0,76327.0,1.8035365]
[1731002215151,6.07428576,76328.0,76327.0,2.0535365]
[1731002215353,5.81295476,76328.0,76327.0,2.11896502]
[1731002215561,5.58975476,76328.0,76327.0,2.0535365]
[1731002215790,5.58975476,76328.0,76327.0,2.11896502]
[1731002216002,5.58975476,76328.0,76327.0,2.11996502]
[1731002216210,5.39648692,76328.0,76327.0,1.75815852]
[1731002216427,5.39648692,76328.0,76327.0,1.72225763]
[1731002216428,5.25925815,76328.0,76327.0,1.72225763]
[1731002216655,5.25925815,76328.0,76327.0,1.65682911]
[1731002216873,4.99792615,76328.0,76327.0,1.72225763]
[1731002217081,4.993358,76328.0,76327.0,1.72225763]
[1731002217289,4.993358,76328.0,76327.0,1.72125763]
[1731002217512,4.993358,76328.0,76327.0,1.85349865]
[1731002217988,4.993358,76328.0,76327.0,1.85449865]
[1731002218205,4.993358,76328.0,76327.0,2.65449865]
[1731002218443,4.993358,76328.0,76327.0,2.67649865]
[1731002218655,4.993358,76328.0,76327.0,2.69050107]
[1731002219288,4.993358,76328.0,76327.0,2.87507255]
[1731002219506,4.993358,76328.0,76327.0,2.94050107]
[1731002219935,4.993358,76328.0,76327.0,3.01455755]
[1731002220150,4.993358,76328.0,76327.0,2.25383607]
[1731002220656,4.993358,76328.0,76327.0,2.25283607]
[1731002220877,4.27588363,76328.0,76327.0,2.27998607]
[1731002221102,4.27588363,76328.0,76327.0,2.30198607]
[1731002221551,4.27588363,76328.0,76327.0,2.40298607]
[1731002221766,4.27588363,76328.0,76327.0,2.40198607]
[1731002221991,4.25188363,76328.0,76327.0,2.40298607]
[1731002222677,4.23815181,76328.0,76327.0,2.40298607]
[1731002223065,4.23815181,76328.0,76327.0,3.20298607]
[1731002223520,4.23815181,76328.0,76327.0,3.20198607]
[1731002223741,4.23815181,76328.0,76327.0,3.20298607]
[1731002224157,4.23815181,76328.0,76327.0,2.40198607]
[1731002224395,4.23815181,76328.0,76327.0,2.36882024]
[1731002224606,4.23815181,76328.0,76327.0,2.36782024]
[1731002224820,4.21200181,76328.0,76327.0,2.35714742]
[1731002225043,4.21200181,76328.0,76327.0,2.35981542]
[1731002225254,4.21283581,76328.0,76327.0,2.35881542]
[1731002225459,4.21283581,76328.0,76327.0,2.21625908]
[1731002226141,4.14746952,76328.0,76327.0,2.21625908]
[1731002226342,4.14746952,76328.0,76327.0,5.01197708]
[1731002226558,4.14746952,76328.0,76327.0,5.16447308]
[1731002226790,3.45046952,76328.0,76327.0,5.03459508]
[1731002227016,3.45046952,76328.0,76327.0,4.22471708]
[1731002227342,3.45046952,76328.0,76327.0,4.11973808]
[1731002227509,3.4481943,76328.0,76327.0,4.11973808]
[1731002227711,3.4481943,76328.0,76327.0,4.12073808]
[1731002228714,3.4481943,76328.0,76327.0,3.85096108]
[1731002229012,3.4481943,76328.0,76327.0,3.08807208]
[1731002229707,2.79498821,76328.0,76327.0,3.12156668]
[1731002229928,2.79498821,76328.0,76327.0,3.03404349]
[1731002229929,2.33382589,76328.0,76327.0,3.03404349]
[1731002230166,0.13018522,76328.0,76327.0,2.95666841]
[1731002230430,0.67293649,76333.0,76332.0,0.94140461]
[1731002230599,0.67293649,76333.0,76332.0,5.03451867]
[1731002230851,0.67293649,76333.0,76332.0,5.72010523]
[1731002231059,0.67293649,76333.0,76332.0,5.85234625]
[1731002231467,0.67293649,76333.0,76332.0,5.13319125]
[1731002231687,0.67293649,76333.0,76332.0,5.16752818]
[1731002231901,0.67293649,76333.0,76332.0,5.16852818]
[1731002232109,0.67293649,76333.0,76332.0,5.19052818]
[1731002232978,0.66638523,76333.0,76332.0,5.19052818]
[1731002233418,0.01768183,76335.0,76334.0,0.02615]
[1731002233641,0.01768183,76335.0,76334.0,0.19139517]
[1731002233818,0.00331535,76335.0,76334.0,5.88812173]
[1731002234051,0.00331535,76335.0,76334.0,5.98141673]
[1731002234252,0.00331535,76335.0,76334.0,5.22994673]
[1731002234469,11.11436781,76337.0,76336.0,0.09146684]
[1731002234692,11.11436781,76337.0,76336.0,3.82633086]
[1731002234693,10.92090484,76337.0,76336.0,3.82633086]
[1731002234910,10.59690484,76337.0,76336.0,5.16414942]
[1731002235132,10.59690484,76337.0,76336.0,4.82944442]
[1731002235345,10.59690484,76337.0,76336.0,4.60926042]
[1731002235637,10.59463484,76337.0,76336.0,4.63226042]
[1731002235840,9.13663484,76337.0,76336.0,4.63226042]
[1731002236012,9.13663484,76337.0,76336.0,4.28094542]
[1731002236253,8.09454361,76337.0,76336.0,4.9487044]
[1731002236458,5.34054361,76337.0,76336.0,4.9487044]
[1731002236672,0.02075246,76354.0,76336.0,4.9487044]
[1731002236925,1.5599108,76343.0,76338.0,0.09192403]
[1731002237159,0.42558839,76343.0,76340.0,0.09159423]
[1731002237388,10.95306368,76347.0,76346.0,0.84196066]
[1731002237628,10.95306368,76347.0,76346.0,3.14222266]
[1731002237848,10.79106368,76347.0,76346.0,3.87969266]
[1731002238061,10.79106368,76347.0,76346.0,4.27264266]
[1731002238062,9.99205758,76347.0,76346.0,4.27264266]
[1731002238269,8.53405758,76347.0,76346.0,4.27264266]
[1731002238480,7.72405758,76347.0,76346.0,4.206832]
[1731002238715,6.21872537,76347.0,76346.0,4.50488368]
[1731002238923,5.40872537,76347.0,76346.0,4.54567288]
[1731002239114,5.24672537,76347.0,76346.0,5.34567288]
[1731002239316,5.08472537,76347.0,76346.0,5.34567288]
[1731002239725,5.06872513,76347.0,76346.0,5.34567288]
[1731002239935,5.06872513,76347.0,76346.0,5.34667288]
[1731002240267,4.25034693,76347.0,76346.0,5.34567288]
[1731002240710,4.25034693,76347.0,76346.0,5.34667288]
[1731002240891,4.25034693,76347.0,76346.0,5.36867288]
[1731002241123,4.25034693,76347.0,76346.0,5.25021888]
[1731002241340,4.25034693,76347.0,76346.0,4.82796888]
[1731002241566,4.25034693,76347.0,76346.0,4.76215822]
[1731002241790,4.25034693,76347.0,76346.0,3.95522922]
[1731002242223,4.20267446,76347.0,76346.0,3.15522922]
[1731002242431,4.20267446,76347.0,76346.0,3.10696322]
[1731002243252,4.20267446,76347.0,76346.0,3.10596322]
[1731002243516,4.20267446,76347.0,76346.0,3.22996322]
[1731002243730,4.20267446,76347.0,76346.0,2.95709222]
[1731002243939,4.20267446,76347.0,76346.0,2.00906222]
[1731002244159,4.20267446,76347.0,76346.0,1.76464022]
[1731002244814,4.20267446,76347.0,76346.0,0.93320102]
[1731002245082,4.32857446,76347.0,76346.0,0.80510102]
[1731002245318,4.32857446,76347.0,76346.0,0.80610102]
[1731002246167,4.32857446,76347.0,76346.0,0.90610102]
[1731002246383,4.32857446,76347.0,76346.0,0.90510102]
[1731002246815,4.32857446,76347.0,76346.0,0.90610102]
[1731002247035,4.32857446,76347.0,76346.0,0.90510102]
[1731002247242,4.32857446,76347.0,76346.0,0.90610102]
[1731002247670,4.32857446,76347.0,76346.0,0.90510102]
[1731002247892,4.32777446,76347.0,76346.0,0.90610102]
[1731002248114,4.32777446,76347.0,76346.0,0.90510102]
[1731002248561,4.32777446,76347.0,76346.0,0.91274212]
[1731002249025,4.32777446,76347.0,76346.0,0.67386]
[1731002249249,4.33277446,76347.0,76346.0,0.67386]
[1731002249714,4.33277446,76347.0,76346.0,0.54576]
[1731002249941,4.33277446,76347.0,76346.0,0.57981789]
[1731002250365,4.33277446,76347.0,76346.0,0.45071789]
[1731002250594,4.33277446,76347.0,76346.0,0.45171789]
[1731002251549,4.33277446,76347.0,76346.0,0.45071789]
[1731002251760,4.33277446,76347.0,76346.0,0.45171789]
[1731002251981,4.33277446,76347.0,76346.0,0.45071789]
[1731002252231,4.33277446,76347.0,76346.0,0.55071789]
[1731002252446,4.33277446,76347.0,76346.0,0.55171789]
[1731002252703,4.33277446,76347.0,76346.0,0.52671789]
[1731002253363,4.33277446,76347.0,76346.0,0.91966789]
[1731002254687,4.33277446,76347.0,76346.0,0.88561]
[1731002255142,4.32777446,76347.0,76346.0,0.88561]
[1731002255775,4.32777446,76347.0,76346.0,0.937949]
[1731002256467,4.28157446,76347.0,76346.0,0.936949]
[1731002256896,4.28157446,76347.0,76346.0,0.937949]
[1731002257339,4.28157446,76347.0,76346.0,1.07019002]
[1731002257815,4.28157446,76347.0,76346.0,0.937949]
[1731002258002,4.28157446,76347.0,76346.0,0.88561]
[1731002258003,4.33217446,76347.0,76346.0,0.88561]
[1731002259423,4.33217446,76347.0,76346.0,0.88461]
[1731002259842,4.33217446,76347.0,76346.0,0.91176]
[1731002260055,4.33217446,76347.0,76346.0,0.91076]
[1731002260264,4.33217446,76347.0,76346.0,0.94427051]
[1731002260475,4.33217446,76347.0,76346.0,0.94527051]
[1731002260686,4.33217446,76347.0,76346.0,1.07751153]
[1731002261109,4.32717446,76347.0,76346.0,1.07751153]
[1731002261350,4.28157446,76347.0,76346.0,1.07751153]
[1731002261598,4.20187446,76347.0,76346.0,1.07751153]
[1731002261803,4.20187446,76347.0,76346.0,0.94527051]
[1731002262447,4.20187446,76347.0,76346.0,1.07751153]
[1731002262725,4.20187446,76347.0,76346.0,1.07651153]
[1731002262952,4.20187446,76347.0,76346.0,1.07751153]
[1731002263204,4.19373931,76347.0,76346.0,1.07651153]
[1731002263639,4.19373931,76347.0,76346.0,1.07751153]
[1731002264312,4.19373931,76347.0,76346.0,1.07651153]
[1731002264541,4.19373931,76347.0,76346.0,1.04300102]
[1731002264760,4.19373931,76347.0,76346.0,1.04400102]
[1731002265194,4.19373931,76347.0,76346.0,0.91176]
[1731002265850,4.19373931,76347.0,76346.0,0.91076]
[1731002266277,4.19373931,76347.0,76346.0,0.91176]
[1731002266463,4.19373931,76347.0,76346.0,0.91076]
[1731002266923,4.19373931,76347.0,76346.0,0.91176]
[1731002267792,4.19373931,76347.0,76346.0,0.81176]
[1731002268020,4.19373931,76347.0,76346.0,0.91176]
[1731002270693,4.19373931,76347.0,76346.0,0.82004361]
[1731002270904,4.32853931,76347.0,76346.0,0.82004361]
[1731002271572,4.49574033,76347.0,76346.0,0.78561]
[1731002271794,4.49574033,76347.0,76346.0,0.787278]
[1731002271795,4.49374033,76347.0,76346.0,0.787278]
[1731002272243,4.49374033,76347.0,76346.0,0.786278]
[1731002272444,4.49374033,76347.0,76346.0,0.787278]
[1731002272656,4.49374033,76347.0,76346.0,0.786278]
[1731002272869,4.49374033,76347.0,76327.0,0.001668]
[1731002272870,0.005,76336.0,76327.0,0.001668]
[1731002273101,0.005,76328.0,76327.0,0.001668]
[1731002273576,0.005,76328.0,76327.0,0.42966481]
[1731002273789,0.03796,76319.0,76312.0,0.341]
[1731002274043,0.03796,76319.0,76310.0,0.02615]
[1731002274044,0.01496,76311.0,76310.0,0.0022772]
[1731002274245,0.005,76313.0,76306.0,0.005236]
[1731002274246,0.002,76313.0,76306.0,0.005236]
[1731002274455,0.023,76312.0,76304.0,0.03412785]
[1731002274667,0.023,76312.0,76310.0,0.39313]
[1731002274884,0.025,76312.0,76301.0,0.005]
[1731002275106,0.025,76312.0,76300.0,0.005]
[1731002275107,0.023,76308.0,76300.0,0.005]
[1731002275321,0.023,76312.0,76305.0,0.005]
[1731002275527,0.023,76319.0,76312.0,0.005]
[1731002275742,0.022,76319.0,76312.0,0.005]
[1731002275949,0.022,76319.0,76313.0,0.39312]
[1731002276167,0.022,76319.0,76313.0,0.78624]
[1731002276377,0.022,76319.0,76315.0,0.005]
[1731002276583,0.0473,76320.0,76315.0,0.005]
[1731002276796,0.03892745,76423.0,76315.0,0.005]
[1731002276797,0.002,76335.0,76319.0,0.005]
[1731002277004,0.002,76335.0,76316.0,0.7862]
[1731002277005,0.0475,76344.0,76331.0,0.005]
[1731002277219,0.0336,76341.0,76330.0,0.005]
[1731002277453,0.0336,76341.0,76335.0,0.005]
[1731002277722,0.0326,76341.0,76335.0,0.005]
[1731002277927,0.0326,76341.0,76337.0,0.1]
[1731002278337,4.30793306,76347.0,76338.0,0.39299]
[1731002278548,4.30793306,76347.0,76339.0,0.1]
[1731002278978,4.30793306,76347.0,76340.0,0.78596]
[1731002280091,0.023,76346.0,76340.0,0.78596]
[1731002280301,0.15524102,76346.0,76340.0,0.78596]
[1731002280716,4.17569204,76347.0,76342.0,0.005]
[1731002280935,4.30793306,76347.0,76342.0,0.005]
[1731002281163,4.30793306,76347.0,76344.0,0.1]
[1731002281706,4.17569204,76347.0,76346.0,0.1]
[1731002281995,4.17569204,76347.0,76346.0,0.49295]
[1731002282207,4.17569204,76347.0,76346.0,0.8859]
[1731002282841,4.30793306,76347.0,76346.0,0.8859]
[1731002283876,4.17569204,76347.0,76346.0,0.8859]
[1731002284281,4.30793306,76347.0,76346.0,0.8859]
[1731002284502,4.30793306,76347.0,76346.0,0.886734]
[1731002285368,4.30793306,76347.0,76346.0,0.887734]
[1731002285581,4.33823306,76347.0,76346.0,0.76434548]
[1731002286677,4.33823306,76347.0,76346.0,0.76334548]
[1731002286899,4.33823306,76347.0,76346.0,0.74275801]
[1731002287128,4.33823306,76347.0,76346.0,0.72774553]
[1731002287349,4.33823306,76347.0,76346.0,0.72674553]
[1731002287561,4.33823306,76347.0,76346.0,0.69928307]
[1731002287786,4.33823306,76347.0,76346.0,0.66954561]
[1731002288047,4.37181797,76347.0,76346.0,0.66954561]
[1731002288598,4.37181797,76347.0,76346.0,0.67054561]
[1731002288798,5.06711797,76347.0,76346.0,0.67054561]
[1731002289997,5.06711797,76347.0,76346.0,0.64995814]
[1731002290339,5.06711797,76347.0,76346.0,0.61564569]
[1731002290549,5.06711797,76347.0,76346.0,0.59277073]
[1731002290705,5.06711797,76347.0,76346.0,0.57218326]
[1731002291523,5.06711797,76347.0,76346.0,0.53744268]
[1731002291724,5.06711797,76347.0,76346.0,0.53844268]
[1731002292145,5.06711797,76347.0,76340.0,0.25]
[1731002292146,0.028,76341.0,76340.0,0.25]
[1731002292394,0.16024102,76341.0,76340.0,0.22549943]
[1731002292636,0.31909834,76341.0,76340.0,0.0991094]
[1731002292938,0.023,76328.0,76302.0,0.0047]
[1731002293187,0.002,76336.0,76277.0,0.19693956]
[1731002293188,0.023,76302.0,76277.0,0.19693956]
[1731002293387,0.17985732,76302.0,76294.0,0.19693956]
[1731002293575,0.023,76314.0,76303.0,0.60636268]
[1731002293823,0.19693956,76306.0,76303.0,0.60636268]
[1731002294044,0.6953,76313.0,76303.0,0.60636268]
[1731002294265,0.13224102,76304.0,76303.0,0.60636268]
[1731002294472,0.13224102,76304.0,76286.0,0.03414133]
[1731002294473,0.13224102,76304.0,76275.0,0.0484]
[1731002294687,0.6953,76313.0,76275.0,0.0484]
[1731002294688,0.13224102,76297.0,76280.0,0.1]
[1731002294902,0.19693956,76296.0,76275.0,0.0484]
[1731002295040,0.13224102,76295.0,76282.0,0.1]
[1731002295264,0.19693956,76286.0,76282.0,0.1]
[1731002295463,0.13224102,76285.0,76283.0,0.39327]
[1731002295648,0.13224102,76285.0,76283.0,0.78489314]
[1731002296957,0.35218058,76284.0,76283.0,0.78489314]
[1731002297162,0.15524102,76284.0,76283.0,0.78489314]
[1731002297783,0.15524102,76284.0,76283.0,0.78589314]
[1731002297985,0.15524102,76284.0,76283.0,0.78489314]
[1731002298406,0.15524102,76284.0,76283.0,0.78589314]
[1731002298617,0.15524102,76284.0,76283.0,0.78489314]
[1731002299027,0.15524102,76284.0,76283.0,0.78589314]
[1731002299268,0.023,76283.0,76250.0,0.001484]
[1731002299471,0.13224102,76264.0,76254.0,0.19693956]
[1731002299663,0.13224102,76264.0,76250.0,0.001484]
[1731002299861,0.13224102,76263.0,76250.0,0.001484]
[1731002300065,0.32918058,76260.0,76250.0,0.001484]
[1731002300267,0.32918058,76260.0,76251.0,0.78682]
[1731002300470,0.13224102,76257.0,76251.0,0.78682]
[1731002300784,0.13224102,76256.0,76251.0,0.78682]
[1731002301740,0.13224102,76256.0,76252.0,0.1]
[1731002301958,0.19693956,76255.0,76254.0,0.1]
[1731002302179,0.32918058,76255.0,76254.0,0.49342]
[1731002302407,0.13224102,76255.0,76254.0,0.88684]
[1731002304132,0.19693956,76264.0,76254.0,0.88684]
[1731002304362,0.13224102,76263.0,76254.0,0.88684]
[1731002304998,0.13224102,76263.0,76254.0,0.88784]
[1731002305217,0.6953,76295.0,76259.0,0.005]
[1731002305437,0.13224102,76271.0,76266.0,0.1312]
[1731002305724,0.19693956,76346.0,76267.0,0.1]
[1731002305725,0.03353493,76291.0,76267.0,0.1]
[1731002305929,0.6953,76304.0,76269.0,0.005]
[1731002306349,0.6953,76303.0,76279.0,0.005]
[1731002306581,0.19693956,76330.0,76271.0,0.1]
[1731002306582,1.1133,76328.0,76282.0,0.005]
[1731002307063,1.1133,76328.0,76284.0,0.1]
[1731002307513,1.1133,76328.0,76286.0,0.1]
[1731002307736,0.6953,76314.0,76286.0,0.1]
[1731002307969,0.03462446,76322.0,76293.0,0.005]
[1731002308177,0.19693956,76330.0,76297.0,0.005]
[1731002308358,0.19693956,76330.0,76302.0,0.0753]
[1731002308988,0.19693956,76330.0,76304.0,0.1]
[1731002309413,0.19693956,76330.0,76304.0,0.88632]
[1731002309581,0.13224102,76314.0,76304.0,0.88632]
[1731002310568,0.023,76308.0,76304.0,0.88632]
[1731002310773,0.13224102,76307.0,76304.0,0.88632]
[1731002311060,0.13224102,76307.0,76304.0,0.88732]
[1731002311878,0.19693956,76305.0,76304.0,0.88632]
[1731002312097,0.15524102,76305.0,76304.0,0.78632]
[1731002312272,0.15524102,76305.0,76304.0,0.78732]
[1731002313463,0.15524102,76305.0,76274.0,0.0831]
[1731002313464,0.023,76304.0,76274.0,0.0831]
[1731002313682,0.13224102,76292.0,76274.0,0.0831]
[1731002313885,0.023,76291.0,76274.0,0.0831]
[1731002314088,0.32918058,76290.0,76274.0,0.0831]
[1731002314304,0.19693956,76282.0,76267.0,0.0471]
[1731002314506,0.13224102,76277.0,76256.0,0.11350584]
[1731002314706,0.13224102,76277.0,76268.0,0.39332]
[1731002314905,0.13224102,76277.0,76256.0,0.0785]
[1731002314906,0.13224102,76273.0,76256.0,0.0785]
[1731002315548,0.13224102,76273.0,76257.0,0.39878392]
[1731002315763,0.19693956,76272.0,76258.0,0.1]
[1731002315963,0.13224102,76271.0,76258.0,0.1]
[1731002316167,0.13224102,76271.0,76260.0,0.1]
[1731002316592,0.13224102,76271.0,76262.0,0.1]
[1731002317003,0.13224102,76271.0,76264.0,0.1]
[1731002317439,0.13224102,76269.0,76265.0,0.78674]
[1731002318751,0.023,76268.0,76265.0,0.77497753]
[1731002318969,0.023,76266.0,76265.0,0.77497753]
[1731002319189,0.15524102,76266.0,76265.0,0.77497753]
[1731002320750,0.15524102,76266.0,76265.0,0.77597753]
[1731002322046,0.15524102,76266.0,76265.0,0.77497753]
[1731002323406,0.15524102,76266.0,76265.0,0.77597753]
[1731002326757,0.19693956,76282.0,76266.0,0.1791]
[1731002326980,0.19693956,76273.0,76266.0,0.1791]
[1731002327217,0.13224102,76281.0,76268.0,0.1]
[1731002327498,0.19693956,76280.0,76270.0,0.005]
[1731002327732,0.19693956,76280.0,76270.0,0.105]
[1731002327967,0.19693956,76290.0,76279.0,0.005]
[1731002328200,0.19693956,76282.0,76281.0,0.1]
[1731002328645,0.13224102,76289.0,76281.0,0.89832]
[1731002328874,0.19693956,76290.0,76281.0,0.89832]
[1731002329125,0.19693956,76290.0,76281.0,0.90319188]
[1731002329342,0.13224102,76289.0,76281.0,0.89819188]
[1731002330472,0.023,76288.0,76281.0,0.89819188]
[1731002330693,0.13224102,76289.0,76281.0,0.89819188]
[1731002330694,0.13224102,76287.0,76281.0,0.89819188]
[1731002331144,0.023,76286.0,76281.0,0.89819188]
[1731002331388,0.15524102,76286.0,76281.0,0.89819188]
[1731002332566,0.15524102,76286.0,76281.0,0.93306199]
[1731002333887,0.023,76282.0,76281.0,0.79832]
[1731002334115,0.15524102,76282.0,76281.0,0.79832]
[1731002335298,0.15524102,76282.0,76281.0,0.89832]
[1731002337306,0.15524102,76282.0,76281.0,0.79832]
[1731002343053,0.13224102,76282.0,76281.0,0.79832]
[1731002343883,0.13391102,76282.0,76281.0,0.79832]
[1731002344328,0.13391102,76282.0,76281.0,0.79764204]
[1731002348126,0.15691102,76282.0,76281.0,0.79764204]
[1731002351970,0.15691102,76282.0,76281.0,0.87834204]
[1731002352175,0.13391102,76282.0,76281.0,0.87834204]
[1731002352391,0.10991102,76282.0,76281.0,0.87834204]
[1731002353246,0.00167,76282.0,76281.0,0.97834204]
[1731002353665,0.00167,76282.0,76281.0,1.02644204]
[1731002356064,0.00167,76282.0,76281.0,1.02727704]
[1731002357880,0.00167,76282.0,76281.0,1.03396646]
[1731002358063,0.00167,76282.0,76281.0,1.03062175]
[1731002358308,0.00167,76282.0,76281.0,1.02727704]
[1731002364185,0.13391102,76282.0,76281.0,1.02727704]
[1731002364412,0.15691102,76282.0,76281.0,0.79847704]
[1731002365028,0.023,76281.0,76265.0,0.000835]
[1731002365233,0.13224102,76271.0,76265.0,0.000835]
[1731002365506,0.023,76270.0,76265.0,0.000835]
[1731002365719,0.023,76281.0,76265.0,0.000835]
[1731002365720,0.13224102,76269.0,76265.0,0.000835]
[1731002365946,0.023,76268.0,76266.0,0.39335]
[1731002366154,0.13224102,76267.0,76266.0,0.39335]
[1731002366496,0.13224102,76267.0,76266.0,0.88671]
[1731002367915,0.19860956,76282.0,76266.0,0.88671]
[1731002368123,0.13224102,76267.0,76266.0,0.88671]
[1731002369261,0.10824102,76267.0,76266.0,0.88671]
[1731002371972,0.13124102,76267.0,76266.0,0.88671]
[1731002372670,0.13124102,76267.0,76266.0,0.78671]
[1731002374739,0.13124102,76267.0,76266.0,0.67295201]
[1731002377420,0.16541019,76267.0,76266.0,0.67295201]
[1731002378286,0.16541019,76267.0,76266.0,0.70459823]
[1731002379177,0.16541019,76267.0,76266.0,0.70543323]
[1731002379385,0.16708019,76267.0,76266.0,0.70543323]
[1731002380901,0.16708019,76267.0,76266.0,0.67378701]
[1731002381085,0.86238019,76267.0,76266.0,0.70539172]
[1731002381499,0.86238019,76267.0,76266.0,0.68594267]
[1731002382686,0.86238019,76267.0,76266.0,0.70537445]
[1731002383330,0.86238019,76267.0,76258.0,0.000835]
[1731002383331,0.002,76265.0,76258.0,0.000835]
[1731002383539,0.023,76266.0,76246.0,0.000834]
[1731002383540,0.023,76258.0,76246.0,0.000834]
[1731002383753,0.13224102,76248.0,76246.0,0.000834]
[1731002383969,0.17029205,76248.0,76246.0,0.000834]
[1731002384381,0.15524102,76248.0,76247.0,0.394294]
[1731002385041,0.15524102,76248.0,76233.0,0.001482]
[1731002385281,0.023,76233.0,76231.0,0.001484]
[1731002385515,0.21199059,76247.0,76231.0,0.001484]
[1731002385516,0.15524102,76232.0,76231.0,0.001484]
[1731002385725,0.002,76245.0,76232.0,0.23829898]
[1731002385726,0.023,76245.0,76232.0,0.23829898]
[1731002385943,0.19693956,76237.0,76209.0,0.0774]
[1731002386202,0.13224102,76225.0,76209.0,0.0774]
[1731002386433,0.03494499,76236.0,76225.0,0.26129898]
[1731002386668,0.19693956,76235.0,76225.0,0.26129898]
[1731002386888,0.19693956,76235.0,76226.0,0.39354]
[1731002387110,0.07393007,76227.0,76226.0,0.39354]
[1731002387985,0.09693007,76227.0,76226.0,0.39354]
[1731002389813,0.1119811,76227.0,76226.0,0.39354]
[1731002390065,0.14652968,76227.0,76226.0,0.39354]
[1731002391959,0.14652968,76227.0,76226.0,0.91935]
[1731002392160,0.12352968,76227.0,76226.0,0.91935]
[1731002393432,0.14652968,76227.0,76226.0,0.93872837]
[1731002393659,0.14652968,76227.0,76226.0,0.91935]
[1731002394511,0.12252968,76227.0,76226.0,0.91935]
[1731002395451,0.12252968,76227.0,76226.0,0.93146272]
[1731002395888,0.10747865,76227.0,76226.0,0.93146272]
[1731002397579,0.10747865,76227.0,76226.0,0.95084518]
[1731002397831,0.08447865,76227.0,76226.0,0.95084518]
[1731002398173,0.04993007,76227.0,76226.0,1.03244518]